fUST/lending_fUST_20240814
["ID","MTS","AMOUNT","RATE_DAILY","PERIOD"]
[334889798,1723627846829,-500.0,0.00013972,2]
[334889799,1723627846841,-518.64091493,0.00013972,2]
[334889800,1723627846851,-500.0,0.00013972,2]
[334889801,1723627846861,-500.0,0.00013972,2]
[334889802,1723627846870,-500.0,0.00013972,2]
[334889803,1723627846880,-500.0,0.00013972,2]
[334889804,1723627846890,-1014.19,0.00013972,2]
[334889805,1723627846900,-500.0,0.00013972,2]
[334889806,1723627846909,-500.0,0.00013972,2]
[334889807,1723627846919,-500.0,0.00013972,2]
[334889808,1723627846929,-500.0,0.00013972,2]
[334889809,1723627846939,-693.95,0.00013972,2]
[334889810,1723627846951,-500.0,0.00013972,2]
[334889811,1723627846962,-500.0,0.00013972,2]
[334889812,1723627846972,-500.0,0.00013972,2]
[334889813,1723627846982,-500.0,0.00013972,2]
[334889814,1723627846994,-500.0,0.00013972,2]
[334889815,1723627847005,-500.0,0.00013972,2]
[334889816,1723627847015,-500.0,0.00013972,2]
[334889817,1723627847027,-500.0,0.00013972,2]
[334889818,1723627847038,-500.0,0.00013972,2]
[334889819,1723627847047,-500.0,0.00013972,2]
[334889820,1723627847059,-500.0,0.00013972,2]
[334889821,1723627847070,-500.0,0.00013972,2]
[334889822,1723627847079,-500.0,0.00013972,2]
[334889823,1723627847088,-500.0,0.00013972,2]
[334889824,1723627847098,-500.0,0.00013972,2]
[334889825,1723627847108,-500.0,0.00013972,2]
[334889826,1723627847117,-500.0,0.00013972,2]
[334889827,1723627847126,-636.26,0.00013972,2]
[334889828,1723627847136,-500.0,0.00013972,2]
[334889829,1723627847145,-517.59153495,0.00013972,2]
[334889830,1723627847155,-500.0,0.00013972,2]
[334889831,1723627847165,-500.0,0.00013972,2]
[334889832,1723627847176,-569.28,0.00013972,2]
[334889833,1723627847186,-500.0,0.00013972,2]
[334889834,1723627847195,-500.0,0.00013972,2]
[334889835,1723627847205,-367.16388124,0.00013972,2]
[334889836,1723627847215,-500.0,0.00013972,2]
[334889837,1723627847225,-500.0,0.00013972,2]
[334889838,1723627847235,-500.0,0.00013972,2]
[334889839,1723627847245,-500.0,0.00013972,2]
[334889840,1723627847255,-500.0,0.00013972,2]
[334889841,1723627847265,-500.0,0.00013972,2]
[334889842,1723627847275,-500.0,0.00013972,2]
[334889843,1723627847284,-260.58144566,0.00013972,2]
[334889844,1723627847294,-476.11888176,0.00013972,2]
[334889845,1723627847304,-500.0,0.00013972,2]
[334889846,1723627847314,-500.0,0.00013972,2]
[334889847,1723627847323,-500.0,0.00013972,2]
[334889848,1723627847332,-500.0,0.00013972,2]
[334889849,1723627847345,-500.0,0.00013972,2]
[334889850,1723627847354,-500.0,0.00013972,2]
[334889851,1723627847364,-500.0,0.00013972,2]
[334889852,1723627847374,-500.0,0.00013972,2]
[334889853,1723627847385,-500.0,0.00013972,2]
[334889854,1723627847395,-500.0,0.00013972,2]
[334889855,1723627847404,-500.0,0.00013972,2]
[334889856,1723627847415,-525.9794324,0.00013972,2]
[334889857,1723627847425,-562.6,0.00013972,2]
[334889858,1723627847435,-500.0,0.00013972,2]
[334889859,1723627847446,-500.0,0.00013972,2]
[334889860,1723627847457,-500.0,0.00013972,2]
[334889861,1723627847466,-500.0,0.00013972,2]
[334889862,1723627847475,-500.0,0.00013972,2]
[334889863,1723627847485,-500.0,0.00013972,2]
[334889864,1723627847495,-500.0,0.00013972,2]
[334889865,1723627847505,-500.0,0.00013972,2]
[334889866,1723627847516,-500.0,0.00013972,2]
[334889867,1723627847526,-530.51016858,0.00013972,2]
[334889868,1723627847535,-631.6895163,0.00013972,2]
[334889869,1723627847545,-500.0,0.00013972,2]
[334889870,1723627847554,-500.0,0.00013972,2]
[334889871,1723627847565,-326.0038997,0.00013972,2]
[334889872,1723627847574,-512.5771374,0.00013972,2]
[334889873,1723627847584,-398.70190098,0.00013972,2]
[334889874,1723627847594,-500.0,0.00013972,2]
[334889875,1723627847604,-500.0,0.00013972,2]
[334889876,1723627847615,-500.0,0.00013972,2]
[334889877,1723627847626,-500.0,0.00013972,2]
[334889878,1723627847635,-500.0,0.00013972,2]
[334889879,1723627847647,-500.0,0.00013972,2]
[334889880,1723627847657,-500.0,0.00013972,2]
[334889881,1723627847669,-500.0,0.00013972,2]
[334889882,1723627847679,-500.0,0.00013972,2]
[334889883,1723627847688,-500.0,0.00013972,2]
[334889884,1723627847697,-500.0,0.00013972,2]
[334889885,1723627847707,-505.34830515,0.00013972,2]
[334889886,1723627847716,-500.0,0.00013972,2]
[334889887,1723627847728,-333.67149681,0.00013972,2]
[334889888,1723627847738,-500.0,0.00013972,2]
[334889889,1723627847749,-500.0,0.00013972,2]
[334889890,1723627847759,-500.0,0.00013972,2]
[334889891,1723627847768,-500.0,0.00013972,2]
[334889892,1723627847778,-500.0,0.00013972,2]
[334889893,1723627847787,-515.47186519,0.00013972,2]
[334889894,1723627847798,-500.0,0.00013972,2]
[334889895,1723627847815,-500.0,0.00013972,2]
[334889896,1723627847825,-500.0,0.00013972,2]
[334889897,1723627847834,-500.0,0.00013972,2]
[334889898,1723627847844,-500.0,0.00013972,2]
[334889899,1723627847854,-2358.64,0.00013972,2]
[334889900,1723627847874,-500.0,0.00013972,2]
[334889901,1723627847887,-500.0,0.00013972,2]
[334889902,1723627847896,-500.0,0.00013972,2]
[334889903,1723627847906,-500.0,0.00013972,2]
[334889904,1723627847915,-500.0,0.00013972,2]
[334889905,1723627847925,-834.05,0.00013972,2]
[334889906,1723627847935,-500.0,0.00013972,2]
[334889907,1723627847945,-759.51,0.00013972,2]
[334889908,1723627847955,-500.0,0.00013972,2]
[334889909,1723627847965,-500.0,0.00013972,2]
[334889910,1723627847976,-500.0,0.00013972,2]
[334889911,1723627847986,-500.0,0.00013972,2]
[334889912,1723627847997,-500.0,0.00013972,2]
[334889913,1723627848009,-518.16872683,0.00013972,2]
[334889914,1723627848020,-500.0,0.00013972,2]
[334889915,1723627848029,-925.56,0.00013972,2]
[334889916,1723627848039,-511.89429799,0.00013972,2]
[334889917,1723627848050,-171.11683844,0.00013972,2]
[334889918,1723627848061,-500.0,0.00013972,2]
[334889919,1723627848071,-864.82,0.00013972,2]
[334889920,1723627848081,-500.0,0.00013972,2]
[334889921,1723627848091,-568.31,0.00013972,2]
[334889922,1723627848101,-500.0,0.00013972,2]
[334889923,1723627848112,-500.0,0.00013972,2]
[334889924,1723627848124,-500.0,0.00013972,2]
[334889925,1723627848135,-500.0,0.00013972,2]
[334889926,1723627848145,-822.07,0.00013972,2]
[334889927,1723627848155,-1032.84,0.00013972,2]
[334889928,1723627848166,-500.0,0.00013972,2]
[334889929,1723627848176,-500.0,0.00013972,2]
[334889930,1723627848186,-500.0,0.00013972,2]
[334889931,1723627848197,-969.54,0.00013972,2]
[334889932,1723627848207,-500.0,0.00013972,2]
[334889933,1723627848217,-500.0,0.00013972,2]
[334889934,1723627848227,-500.0,0.00013972,2]
[334889935,1723627848237,-3616.69,0.00013972,2]
[334889936,1723627848248,-458.80506921,0.00013972,2]
[334889937,1723627848259,-500.0,0.00013972,2]
[334889938,1723627848269,-500.0,0.00013972,2]
[334889939,1723627848279,-500.0,0.00013972,2]
[334889940,1723627848289,-500.0,0.00013972,2]
[334889941,1723627848299,-500.0,0.00013972,2]
[334889942,1723627848310,-500.0,0.00013972,2]
[334889943,1723627848320,-578.79261458,0.00013972,2]
[334889944,1723627848330,-500.0,0.00013972,2]
[334889945,1723627848341,-500.0,0.00013972,2]
[334889946,1723627848351,-500.0,0.00013972,2]
[334889947,1723627848360,-500.0,0.00013972,2]
[334889948,1723627848370,-500.0,0.00013972,2]
[334889949,1723627848380,-500.0,0.00013972,2]
[334889950,1723627848391,-831.63,0.00013972,2]
[334889951,1723627848400,-500.0,0.00013972,2]
[334889952,1723627848411,-803.68,0.00013972,2]
[334889953,1723627848421,-500.0,0.00013972,2]
[334889954,1723627848431,-500.0,0.00013972,2]
[334889955,1723627848442,-500.0,0.00013972,2]
[334889956,1723627848452,-528.59,0.00013972,2]
[334889957,1723627848461,-500.0,0.00013972,2]
[334889958,1723627848471,-5260.85,0.00013972,2]
[334889959,1723627848481,-500.0,0.00013972,2]
[334889960,1723627848491,-500.0,0.00013972,2]
[334889961,1723627848501,-500.0,0.00013972,2]
[334889962,1723627848511,-500.0,0.00013972,2]
[334889963,1723627848520,-500.0,0.00013972,2]
[334889964,1723627848530,-706.1,0.00013972,2]
[334889965,1723627848539,-500.0,0.00013972,2]
[334889966,1723627848550,-597.87,0.00013972,2]
[334889967,1723627848561,-500.0,0.00013972,2]
[334889968,1723627848571,-500.0,0.00013972,2]
[334889969,1723627848581,-500.0,0.00013972,2]
[334889970,1723627848592,-500.0,0.00013972,2]
[334889971,1723627848602,-1594.01,0.00013972,2]
[334889972,1723627848612,-500.0,0.00013972,2]
[334889973,1723627848622,-1079.49,0.00013972,2]
[334889974,1723627848632,-432.19308685,0.00013972,2]
[334889975,1723627848642,-1167.87,0.00013972,2]
[334889976,1723627848652,-500.0,0.00013972,2]
[334889977,1723627848661,-797.83,0.00013972,2]
[334889978,1723627848671,-500.0,0.00013972,2]
[334889979,1723627848681,-500.0,0.00013972,2]
[334889980,1723627848693,-992.23,0.00013972,2]
[334889981,1723627848703,-500.0,0.00013972,2]
[334889982,1723627848713,-500.0,0.00013972,2]
[334889983,1723627848723,-500.0,0.00013972,2]
[334889984,1723627848733,-500.0,0.00013972,2]
[334889985,1723627848744,-639.2,0.00013972,2]
[334889986,1723627848754,-500.0,0.00013972,2]
[334889987,1723627848763,-500.0,0.00013972,2]
[334889988,1723627848773,-500.0,0.00013972,2]
[334889989,1723627848782,-500.0,0.00013972,2]
[334889990,1723627848792,-500.0,0.00013972,2]
[334889991,1723627848803,-500.0,0.00013972,2]
[334889992,1723627848819,-915.37,0.00013972,2]
[334889993,1723627848830,-908.61,0.00013972,2]
[334889994,1723627848841,-500.0,0.00013972,2]
[334889995,1723627848853,-500.0,0.00013972,2]
[334889996,1723627848863,-500.0,0.00013972,2]
[334889997,1723627848874,-500.0,0.00013972,2]
[334889998,1723627848884,-500.0,0.00013972,2]
[334889999,1723627848895,-500.0,0.00013972,2]
[334890000,1723627848906,-617.36,0.00013972,2]
[334890001,1723627848916,-500.0,0.00013972,2]
[334890002,1723627848925,-500.0,0.00013972,2]
[334890003,1723627848935,-500.0,0.00013972,2]
[334890004,1723627848945,-500.0,0.00013972,2]
[334890005,1723627848954,-500.0,0.00013972,2]
[334890006,1723627848965,-500.0,0.00013972,2]
[334890007,1723627848975,-500.0,0.00013972,2]
[334890008,1723627848985,-500.0,0.00013972,2]
[334890009,1723627848994,-500.0,0.00013972,2]
[334890010,1723627849004,-500.0,0.00013972,2]
[334890011,1723627849013,-500.0,0.00013972,2]
[334890012,1723627849023,-500.0,0.00013972,2]
[334890013,1723627849032,-500.0,0.00013972,2]
[334890014,1723627849042,-500.0,0.00013972,2]
[334890015,1723627849052,-500.0,0.00013972,2]
[334890016,1723627849064,-5983.7,0.00013972,2]
[334890017,1723627849075,-500.0,0.00013972,2]
[334890018,1723627849085,-500.0,0.00013972,2]
[334890019,1723627849095,-513.47369682,0.00013972,2]
[334890020,1723627849105,-2701.05,0.00013972,2]
[334890021,1723627849114,-500.0,0.00013972,2]
[334890022,1723627849124,-500.0,0.00013972,2]
[334890023,1723627849279,-500.41647586,0.00013972,2]
[334890024,1723627849290,-500.0,0.00013972,2]
[334890025,1723627849300,-500.0,0.00013972,2]
[334890026,1723627849311,-628.01602084,0.00013972,2]
[334890027,1723627849321,-905.61,0.00013972,2]
[334890028,1723627849331,-1032.89,0.00013972,2]
[334890029,1723627849340,-500.0,0.00013972,2]
[334890030,1723627849350,-1566.9,0.00013972,2]
[334890031,1723627849359,-500.0,0.00013972,2]
[334890032,1723627849369,-500.0,0.00013972,2]
[334890033,1723627849378,-500.0,0.00013972,2]
[334890034,1723627849388,-510.83580921,0.00013972,2]
[334890035,1723627849397,-500.0,0.00013972,2]
[334890036,1723627849407,-853.18,0.00013972,2]
[334890037,1723627849417,-575.98,0.00013972,2]
[334890038,1723627849426,-611.71740426,0.00013972,2]
[334890039,1723627849436,-500.0,0.00013972,2]
[334890040,1723627849445,-521.84,0.00013972,2]
[334890041,1723627849454,-607.10453752,0.00013972,2]
[334890042,1723627849464,-567.6,0.00013972,2]
[334890043,1723627849473,-500.0,0.00013972,2]
[334890044,1723627849483,-500.0,0.00013972,2]
[334890045,1723627849493,-651.84,0.00013972,2]
[334890046,1723627849503,-500.0,0.00013972,2]
[334890047,1723627849512,-500.0,0.00013972,2]
[334890048,1723627849522,-630.08,0.00013972,2]
[334890049,1723627849531,-500.0,0.00013972,2]
[334890050,1723627849540,-500.0,0.00013972,2]
[334890051,1723627849550,-500.0,0.00013972,2]
[334890052,1723627849559,-500.0,0.00013972,2]
[334890053,1723627849569,-500.0,0.00013972,2]
[334890054,1723627849578,-575.68,0.00013972,2]
[334890055,1723627849588,-500.0,0.00013972,2]
[334890056,1723627849597,-500.0,0.00013972,2]
[334890057,1723627849607,-500.0,0.00013972,2]
[334890058,1723627849616,-500.0,0.00013972,2]
[334890059,1723627849626,-544.59,0.00013972,2]
[334890060,1723627849635,-500.0,0.00013972,2]
[334890061,1723627849644,-521.27900516,0.00013972,2]
[334890062,1723627849654,-500.0,0.00013972,2]
[334890063,1723627849664,-516.06419557,0.00013972,2]
[334890064,1723627849674,-13942.21,0.00013972,2]
[334890065,1723627849684,-581.40546261,0.00013972,2]
[334890066,1723627849693,-500.0,0.00013972,2]
[334890067,1723627849703,-500.0,0.00013972,2]
[334890068,1723627849713,-200.0,0.00013973,2]
[334890069,1723627849722,-200.0,0.00013973,2]
[334890070,1723627849731,-42392.12136225,0.00013999,2]
[334890071,1723627849741,-297.99568952,0.00014,2]
[334890072,1723627849750,-500.0,0.00014246,2]
[334890073,1723627849759,-378.08408693,0.00014246,2]
[334890074,1723627849769,-598.1,0.00014246,2]
[334890075,1723627849778,-500.0,0.00014246,2]
[334890076,1723627849787,-500.0,0.00014246,2]
[334890077,1723627849797,-784.93,0.00014246,2]
[334890078,1723627849810,-500.0,0.00014246,2]
[334890079,1723627849821,-320.46,0.00014246,2]
[334890080,1723627849830,-440.64,0.00014246,2]
[334890081,1723627849840,-500.0,0.00014246,2]
[334890082,1723627849851,-337.22,0.00014246,2]
[334890083,1723627849860,-500.0,0.00014246,2]
[334890084,1723627849870,-500.0,0.00014246,2]
[334890085,1723627849880,-500.0,0.00014246,2]
[334890086,1723627849892,-611.98,0.00014246,2]
[334890087,1723627849902,-500.0,0.00014246,2]
[334890088,1723627849911,-561.51,0.00014246,2]
[334890089,1723627849922,-500.0,0.00014246,2]
[334890090,1723627849931,-1014.19,0.00014246,2]
[334890091,1723627849942,-539.7088332,0.00014246,2]
[334890092,1723627849952,-500.0,0.00014246,2]
[334890093,1723627849962,-500.0,0.00014246,2]
[334890094,1723627849972,-500.0,0.00014246,2]
[334890095,1723627849982,-693.95,0.00014246,2]
[334890096,1723627849992,-500.0,0.00014246,2]
[334890097,1723627850001,-500.0,0.00014246,2]
[334890098,1723627850020,-620.27,0.00014246,2]
[334890099,1723627850032,-270.92,0.00014246,2]
[334890100,1723627850042,-500.0,0.00014246,2]
[334890101,1723627850052,-500.0,0.00014246,2]
[334890102,1723627850065,-172.14,0.00014246,2]
[334890103,1723627850074,-500.0,0.00014246,2]
[334890104,1723627850083,-500.0,0.00014246,2]
[334890105,1723627850093,-287.89739983,0.00014246,2]
[334890106,1723627850102,-500.0,0.00014246,2]
[334890107,1723627850112,-500.0,0.00014246,2]
[334890108,1723627850121,-256.16,0.00014246,2]
[334890109,1723627850131,-500.0,0.00014246,2]
[334890110,1723627850141,-500.0,0.00014246,2]
[334890111,1723627850151,-500.0,0.00014246,2]
[334890112,1723627850161,-500.0,0.00014246,2]
[334890113,1723627850171,-500.0,0.00014246,2]
[334890114,1723627850180,-500.0,0.00014246,2]
[334890115,1723627850190,-500.0,0.00014246,2]
[334890116,1723627850199,-500.0,0.00014246,2]
[334890117,1723627850208,-500.0,0.00014246,2]
[334890118,1723627850218,-500.0,0.00014246,2]
[334890119,1723627850228,-500.0,0.00014246,2]
[334890120,1723627850237,-500.0,0.00014246,2]
[334890121,1723627850247,-500.0,0.00014246,2]
[334890122,1723627850257,-551.24,0.00014246,2]
[334890123,1723627850267,-647.90466029,0.00014246,2]
[334890124,1723627850276,-562.6,0.00014246,2]
[334890125,1723627850286,-500.0,0.00014246,2]
[334890126,1723627850297,-500.0,0.00014246,2]
[334890127,1723627850308,-500.0,0.00014246,2]
[334890128,1723627850317,-500.0,0.00014246,2]
[334890129,1723627850327,-209.14396083,0.00014246,2]
[334890130,1723627850336,-500.0,0.00014246,2]
[334890131,1723627850345,-500.0,0.00014246,2]
[334890132,1723627850355,-500.0,0.00014246,2]
[334890133,1723627850365,-583.64,0.00014246,2]
[334890134,1723627850376,-500.0,0.00014246,2]
[334890135,1723627850387,-500.0,0.00014246,2]
[334890136,1723627850398,-509.53993004,0.00014246,2]
[334890137,1723627850407,-500.0,0.00014246,2]
[334890138,1723627850419,-500.0,0.00014246,2]
[334890139,1723627850429,-500.0,0.00014246,2]
[334890140,1723627850440,-519.03537885,0.00014246,2]
[334890141,1723627850449,-500.0,0.00014246,2]
[334890142,1723627850459,-500.0,0.00014246,2]
[334890143,1723627850468,-546.51468707,0.00014246,2]
[334890144,1723627850478,-500.0,0.00014246,2]
[334890145,1723627850488,-500.0,0.00014246,2]
[334890146,1723627850499,-504.39364196,0.00014246,2]
[334890147,1723627850510,-500.0,0.00014246,2]
[334890148,1723627850519,-2358.64,0.00014246,2]
[334890149,1723627850529,-500.0,0.00014246,2]
[334890150,1723627850538,-500.0,0.00014246,2]
[334890151,1723627850547,-500.0,0.00014246,2]
[334890152,1723627850557,-500.0,0.00014246,2]
[334890153,1723627850566,-500.0,0.00014246,2]
[334890154,1723627850576,-834.05,0.00014246,2]
[334890155,1723627850585,-500.0,0.00014246,2]
[334890156,1723627850594,-500.0,0.00014246,2]
[334890157,1723627850603,-759.51,0.00014246,2]
[334890158,1723627850613,-500.0,0.00014246,2]
[334890159,1723627850622,-500.0,0.00014246,2]
[334890160,1723627850631,-500.0,0.00014246,2]
[334890161,1723627850640,-500.0,0.00014246,2]
[334890162,1723627850651,-500.0,0.00014246,2]
[334890163,1723627850661,-925.56,0.00014246,2]
[334890164,1723627850670,-500.0,0.00014246,2]
[334890165,1723627850680,-864.82,0.00014246,2]
[334890166,1723627850689,-568.31,0.00014246,2]
[334890167,1723627850698,-500.0,0.00014246,2]
[334890168,1723627850707,-500.0,0.00014246,2]
[334890169,1723627850717,-500.0,0.00014246,2]
[334890170,1723627850726,-822.07,0.00014246,2]
[334890171,1723627850735,-1032.84,0.00014246,2]
[334890172,1723627850745,-500.0,0.00014246,2]
[334890173,1723627850754,-500.0,0.00014246,2]
[334890174,1723627850763,-473.41676531,0.00014246,2]
[334890175,1723627850772,-969.54,0.00014246,2]
[334890176,1723627850781,-505.46616343,0.00014246,2]
[334890177,1723627850791,-500.0,0.00014246,2]
[334890178,1723627850800,-500.0,0.00014246,2]
[334890179,1723627850812,-3616.69,0.00014246,2]
[334890180,1723627850822,-500.0,0.00014246,2]
[334890181,1723627850832,-500.0,0.00014246,2]
[334890182,1723627850842,-500.0,0.00014246,2]
[334890183,1723627850852,-505.49730584,0.00014246,2]
[334890184,1723627850861,-500.0,0.00014246,2]
[334890185,1723627850870,-500.0,0.00014246,2]
[334890186,1723627850879,-424.15123075,0.00014246,2]
[334890187,1723627850891,-500.0,0.00014246,2]
[334890188,1723627850902,-500.0,0.00014246,2]
[334890189,1723627850913,-500.0,0.00014246,2]
[334890190,1723627850922,-500.0,0.00014246,2]
[334890191,1723627850932,-831.63,0.00014246,2]
[334890192,1723627850942,-500.0,0.00014246,2]
[334890193,1723627850951,-803.68,0.00014246,2]
[334890194,1723627850960,-500.0,0.00014246,2]
[334890195,1723627850970,-500.0,0.00014246,2]
[334890196,1723627850981,-500.0,0.00014246,2]
[334890197,1723627850992,-528.59,0.00014246,2]
[334890198,1723627851003,-500.0,0.00014246,2]
[334890199,1723627851013,-5260.85,0.00014246,2]
[334890200,1723627851023,-500.0,0.00014246,2]
[334890201,1723627851033,-500.0,0.00014246,2]
[334890202,1723627851043,-500.0,0.00014246,2]
[334890203,1723627851054,-500.0,0.00014246,2]
[334890204,1723627851065,-500.0,0.00014246,2]
[334890205,1723627851074,-706.1,0.00014246,2]
[334890206,1723627851084,-500.0,0.00014246,2]
[334890207,1723627851094,-597.87,0.00014246,2]
[334890208,1723627851104,-514.14143089,0.00014246,2]
[334890209,1723627851114,-500.0,0.00014246,2]
[334890210,1723627851123,-500.0,0.00014246,2]
[334890211,1723627851133,-500.0,0.00014246,2]
[334890212,1723627851143,-1594.01,0.00014246,2]
[334890213,1723627851152,-500.0,0.00014246,2]
[334890214,1723627851162,-1079.49,0.00014246,2]
[334890215,1723627851172,-1167.87,0.00014246,2]
[334890216,1723627851184,-500.0,0.00014246,2]
[334890217,1723627851195,-797.83,0.00014246,2]
[334890218,1723627851206,-500.0,0.00014246,2]
[334890219,1723627851216,-500.0,0.00014246,2]
[334890220,1723627851226,-992.23,0.00014246,2]
[334890221,1723627851236,-500.0,0.00014246,2]
[334890222,1723627851246,-500.0,0.00014246,2]
[334890223,1723627851258,-500.0,0.00014246,2]
[334890224,1723627851268,-504.91034911,0.00014246,2]
[334890225,1723627851278,-639.2,0.00014246,2]
[334890226,1723627851288,-500.0,0.00014246,2]
[334890227,1723627851299,-500.0,0.00014246,2]
[334890228,1723627851310,-505.29201818,0.00014246,2]
[334890229,1723627851321,-500.0,0.00014246,2]
[334890230,1723627851331,-500.0,0.00014246,2]
[334890231,1723627851341,-500.0,0.00014246,2]
[334890232,1723627851351,-915.37,0.00014246,2]
[334890233,1723627851360,-908.61,0.00014246,2]
[334890234,1723627851371,-500.0,0.00014246,2]
[334890235,1723627851382,-500.0,0.00014246,2]
[334890236,1723627851392,-500.0,0.00014246,2]
[334890237,1723627851401,-500.0,0.00014246,2]
[334890238,1723627851414,-500.0,0.00014246,2]
[334890239,1723627851426,-500.0,0.00014246,2]
[334890240,1723627851436,-617.36,0.00014246,2]
[334890241,1723627851446,-500.0,0.00014246,2]
[334890242,1723627851456,-500.0,0.00014246,2]
[334890243,1723627851466,-500.0,0.00014246,2]
[334890244,1723627851475,-500.0,0.00014246,2]
[334890245,1723627851485,-500.0,0.00014246,2]
[334890246,1723627851494,-500.0,0.00014246,2]
[334890247,1723627851504,-500.0,0.00014246,2]
[334890248,1723627851513,-500.0,0.00014246,2]
[334890249,1723627851522,-500.0,0.00014246,2]
[334890250,1723627851532,-500.0,0.00014246,2]
[334890251,1723627851542,-500.0,0.00014246,2]
[334890252,1723627851552,-500.0,0.00014246,2]
[334890253,1723627851564,-500.0,0.00014246,2]
[334890254,1723627851574,-500.0,0.00014246,2]
[334890255,1723627851584,-5983.7,0.00014246,2]
[334890256,1723627851594,-500.0,0.00014246,2]
[334890257,1723627851603,-500.0,0.00014246,2]
[334890258,1723627851615,-2701.05,0.00014246,2]
[334890259,1723627851626,-500.0,0.00014246,2]
[334890260,1723627851638,-500.0,0.00014246,2]
[334890261,1723627851648,-504.99563882,0.00014246,2]
[334890262,1723627851658,-905.61,0.00014246,2]
[334890263,1723627851669,-1032.89,0.00014246,2]
[334890264,1723627851679,-500.0,0.00014246,2]
[334890265,1723627851689,-1566.9,0.00014246,2]
[334890266,1723627851700,-500.0,0.00014246,2]
[334890267,1723627851712,-500.0,0.00014246,2]
[334890268,1723627851722,-500.0,0.00014246,2]
[334890269,1723627851732,-512.50607336,0.00014246,2]
[334890270,1723627851741,-853.18,0.00014246,2]
[334890271,1723627851751,-575.98,0.00014246,2]
[334890272,1723627851760,-500.0,0.00014246,2]
[334890273,1723627851771,-521.84,0.00014246,2]
[334890274,1723627851782,-567.6,0.00014246,2]
[334890275,1723627851793,-500.0,0.00014246,2]
[334890276,1723627851803,-500.0,0.00014246,2]
[334890277,1723627851817,-651.84,0.00014246,2]
[334890278,1723627851828,-500.0,0.00014246,2]
[334890279,1723627851838,-500.0,0.00014246,2]
[334890280,1723627851848,-630.08,0.00014246,2]
[334890281,1723627851859,-500.0,0.00014246,2]
[334890282,1723627851868,-500.0,0.00014246,2]
[334890283,1723627851879,-500.0,0.00014246,2]
[334890284,1723627852007,-500.0,0.00014246,2]
[334890285,1723627852017,-504.75162347,0.00014246,2]
[334890286,1723627852026,-575.68,0.00014246,2]
[334890287,1723627852036,-516.26691734,0.00014246,2]
[334890288,1723627852048,-500.0,0.00014246,2]
[334890289,1723627852061,-500.0,0.00014246,2]
[334890290,1723627852072,-500.0,0.00014246,2]
[334890291,1723627852081,-544.59,0.00014246,2]
[334890292,1723627852091,-500.0,0.00014246,2]
[334890293,1723627852100,-516.94590155,0.00014246,2]
[334890294,1723627852110,-13942.21,0.00014246,2]
[334890295,1723627852119,-500.0,0.00014246,2]
[334890296,1723627852128,-500.0,0.00014246,2]
[334890297,1723627852137,-529.409983,0.00014247,2]